[Event "Late Titled Tuesday Blitz February 8 2022"]
[White "Kopczynski, Michal"]
[Black "Milosevic, Milos"]
[WhiteFideId "1124200"]
[BlackFideId "964875"]
[WhiteElo "2235"]
[BlackElo "2198"]
[Result "1-0"]
[Round "08"]
[TimeControl "180+1"]
[Date "2022.02.09"]
[WhiteClock "0:00:13"]
[BlackClock "0:00:41"]

1. e4 {[%clk 0:03:00]}  e5 {[%clk 0:02:58]} 2. Nf3 {[%clk 0:02:59]}  Nc6 {[%clk 0:02:58]} 3. Bb5 {[%clk 0:02:59]}  f5 {[%clk 0:02:58]} 4. d3 {[%clk 0:02:59]}  fxe4 {[%clk 0:02:56]} 5. dxe4 {[%clk 0:03:00]}  Nf6 {[%clk 0:02:56]} 6. Nc3 {[%clk 0:03:00]}  Bc5 {[%clk 0:02:54]} 7. Bg5 {[%clk 0:02:56]}  O-O {[%clk 0:02:52]} 8. Qd2 {[%clk 0:02:54]}  d6 {[%clk 0:02:43]} 9. O-O-O {[%clk 0:02:52]}  a6 {[%clk 0:02:40]} 10. Bc4+ {[%clk 0:02:52]}  Kh8 {[%clk 0:02:40]} 11. Nd5 {[%clk 0:02:51]}  b5 {[%clk 0:02:36]} 12. Nxf6 {[%clk 0:02:46]}  gxf6 {[%clk 0:02:35]} 13. Bd5 {[%clk 0:02:46]}  fxg5 {[%clk 0:02:32]} 14. Bxc6 {[%clk 0:02:46]}  Rb8 {[%clk 0:02:33]} 15. Nxe5 {[%clk 0:02:05]}  Rxf2 {[%clk 0:02:28]} 16. Qxf2 {[%clk 0:01:36]}  Bxf2 {[%clk 0:02:29]} 17. Nf7+ {[%clk 0:01:36]}  Kg7 {[%clk 0:02:22]} 18. Nxd8 {[%clk 0:01:37]}  Bg4 {[%clk 0:02:20]} 19. Nb7 {[%clk 0:00:59]}  Be3+ {[%clk 0:02:13]} 20. Kb1 {[%clk 0:00:59]}  Bxd1 {[%clk 0:02:08]} 21. Rxd1 {[%clk 0:01:00]}  Rf8 {[%clk 0:02:05]} 22. a4 {[%clk 0:00:46]}  b4 {[%clk 0:02:05]} 23. e5 {[%clk 0:00:36]}  dxe5 {[%clk 0:02:04]} 24. Rd7+ {[%clk 0:00:36]}  Kg6 {[%clk 0:02:03]} 25. Rxc7 {[%clk 0:00:36]}  Rf1+ {[%clk 0:02:02]} 26. Ka2 {[%clk 0:00:36]}  Rf2 {[%clk 0:02:03]} 27. Kb3 {[%clk 0:00:35]}  Bd4 {[%clk 0:01:59]} 28. Be4+ {[%clk 0:00:29]}  Kf6 {[%clk 0:01:57]} 29. Rxh7 {[%clk 0:00:28]}  Rf1 {[%clk 0:01:56]} 30. c3 {[%clk 0:00:26]}  bxc3 {[%clk 0:01:55]} 31. bxc3 {[%clk 0:00:27]}  Be3 {[%clk 0:01:55]} 32. Rh6+ {[%clk 0:00:27]}  Ke7 {[%clk 0:01:55]} 33. Rxa6 {[%clk 0:00:26]}  Rf2 {[%clk 0:01:54]} 34. Rh6 {[%clk 0:00:22]}  g4 {[%clk 0:01:53]} 35. Rh7+ {[%clk 0:00:20]}  Ke6 {[%clk 0:01:53]} 36. a5 {[%clk 0:00:21]}  Rf1 {[%clk 0:01:52]} 37. a6 {[%clk 0:00:20]}  Ra1 {[%clk 0:01:50]} 38. Nd8+ {[%clk 0:00:20]}  Kf6 {[%clk 0:01:49]} 39. Rf7+ {[%clk 0:00:17]}  Kg5 {[%clk 0:01:45]} 40. Bb7 {[%clk 0:00:16]}  Rh1 {[%clk 0:01:38]} 41. h3 {[%clk 0:00:15]}  gxh3 {[%clk 0:01:37]} 42. gxh3 {[%clk 0:00:16]}  Rxh3 {[%clk 0:01:37]} 43. Kc4 {[%clk 0:00:16]}  Bb6 {[%clk 0:01:32]} 44. Nc6 {[%clk 0:00:15]}  Rh4+ {[%clk 0:01:32]} 45. Kd5 {[%clk 0:00:15]}  Rh3 {[%clk 0:01:25]} 46. Kxe5 {[%clk 0:00:15]}  Rxc3 {[%clk 0:01:23]} 47. Kd6 {[%clk 0:00:16]}  Bc5+ {[%clk 0:01:20]} 48. Kd5 {[%clk 0:00:16]}  Bb6 {[%clk 0:01:21]} 49. a7 {[%clk 0:00:16]}  Rc5+ {[%clk 0:01:19]} 50. Kd6 {[%clk 0:00:15]}  Bxa7 {[%clk 0:01:20]} 51. Nxa7 {[%clk 0:00:15]}  Rc1 {[%clk 0:01:19]} 52. Nc6 {[%clk 0:00:16]}  Rd1+ {[%clk 0:01:19]} 53. Kc7 {[%clk 0:00:16]}  Rb1 {[%clk 0:01:20]} 54. Bc8 {[%clk 0:00:15]}  Rc1 {[%clk 0:01:20]} 55. Kd6 {[%clk 0:00:15]}  Rd1+ {[%clk 0:01:20]} 56. Ke6 {[%clk 0:00:15]}  Re1+ {[%clk 0:01:20]} 57. Ne5 {[%clk 0:00:16]}  Re2 {[%clk 0:01:19]} 58. Rf5+ {[%clk 0:00:16]}  Kh4 {[%clk 0:01:18]} 59. Bb7 {[%clk 0:00:16]}  Kg3 {[%clk 0:01:17]} 60. Rg5+ {[%clk 0:00:15]}  Kh4 {[%clk 0:01:16]} 61. Rg4+ {[%clk 0:00:14]}  Kh5 {[%clk 0:01:16]} 62. Bf3 {[%clk 0:00:14]}  Re3 {[%clk 0:00:39]} 63. Re4+ {[%clk 0:00:13]}  Rxf3 {[%clk 0:00:39]} 64. Nxf3 {[%clk 0:00:13]}  Kg6 {[%clk 0:00:40]} 65. Rg4+ {[%clk 0:00:13]}  Kh7 {[%clk 0:00:40]} 66. Kf6 {[%clk 0:00:13]}  Kh6 {[%clk 0:00:41]} 67. Rh4# {[%clk 0:00:13]} 1-0


[Site "https://www.chess.com"]

[Event "Late Titled Tuesday Blitz February 8 2022"]
[White "Kosakowski, Jakub"]
[Black "Noboa Silva, Kevin"]
[WhiteFideId "1185080"]
[BlackFideId "3618471"]
[WhiteElo "2476"]
[BlackElo "2161"]
[Result "1-0"]
[Round "08"]
[TimeControl "180+1"]
[Date "2022.02.09"]
[WhiteClock "0:00:23"]
[BlackClock "0:00:39"]

1. d4 {[%clk 0:03:00]}  Nf6 {[%clk 0:02:58]} 2. Nf3 {[%clk 0:02:52]}  e6 {[%clk 0:02:58]} 3. c4 {[%clk 0:02:47]}  Bb4+ {[%clk 0:02:58]} 4. Nbd2 {[%clk 0:02:44]}  a5 {[%clk 0:02:56]} 5. g3 {[%clk 0:02:43]}  b6 {[%clk 0:02:56]} 6. Bg2 {[%clk 0:02:41]}  Bb7 {[%clk 0:02:56]} 7. O-O {[%clk 0:02:41]}  O-O {[%clk 0:02:52]} 8. Qc2 {[%clk 0:02:41]}  d6 {[%clk 0:02:50]} 9. e4 {[%clk 0:02:21]}  c5 {[%clk 0:02:46]} 10. e5 {[%clk 0:02:14]}  dxe5 {[%clk 0:02:44]} 11. dxe5 {[%clk 0:02:14]}  Nfd7 {[%clk 0:02:42]} 12. Ne4 {[%clk 0:02:07]}  a4 {[%clk 0:02:27]} 13. Nd6 {[%clk 0:01:56]}  Bc6 {[%clk 0:02:22]} 14. a3 {[%clk 0:01:42]}  Ba5 {[%clk 0:02:21]} 15. Bg5 {[%clk 0:01:39]}  f6 {[%clk 0:02:14]} 16. exf6 {[%clk 0:01:38]}  Nxf6 {[%clk 0:02:09]} 17. Rad1 {[%clk 0:01:37]}  Qe7 {[%clk 0:02:03]} 18. Ne5 {[%clk 0:01:29]}  Bxg2 {[%clk 0:02:03]} 19. Kxg2 {[%clk 0:01:30]}  Ra7 {[%clk 0:01:49]} 20. Kg1 {[%clk 0:01:24]}  Rc7 {[%clk 0:01:46]} 21. Nb5 {[%clk 0:01:15]}  Rcc8 {[%clk 0:01:42]} 22. Rd6 {[%clk 0:00:45]}  Rcd8 {[%clk 0:01:18]} 23. Rfd1 {[%clk 0:00:45]}  Rxd6 {[%clk 0:01:18]} 24. Rxd6 {[%clk 0:00:46]}  Rd8 {[%clk 0:00:53]} 25. Qd1 {[%clk 0:00:39]}  Rxd6 {[%clk 0:00:52]} 26. Nxd6 {[%clk 0:00:40]}  Nbd7 {[%clk 0:00:39]} 27. Nc6 {[%clk 0:00:34]}  Qf8 {[%clk 0:00:34]} 28. Nb7 {[%clk 0:00:18]}  h6 {[%clk 0:00:28]} 29. Be3 {[%clk 0:00:16]}  Qf7 {[%clk 0:00:15]} 30. Nbxa5 {[%clk 0:00:11]}  bxa5 {[%clk 0:00:15]} 31. Qxa4 {[%clk 0:00:11]}  Qg6 {[%clk 0:00:13]} 32. Ne7+ {[%clk 0:00:11]}  Kh7 {[%clk 0:00:13]} 33. Nxg6 {[%clk 0:00:12]}  Kxg6 {[%clk 0:00:13]} 34. Qxa5 {[%clk 0:00:13]}  Ne5 {[%clk 0:00:13]} 35. Qxc5 {[%clk 0:00:12]}  Kf5 {[%clk 0:00:13]} 36. f4 {[%clk 0:00:12]}  Kg4 {[%clk 0:00:13]} 37. fxe5 {[%clk 0:00:12]}  Ne4 {[%clk 0:00:13]} 38. Qd4 {[%clk 0:00:13]}  Kf3 {[%clk 0:00:14]} 39. Bf4 {[%clk 0:00:13]}  g5 {[%clk 0:00:11]} 40. Qe3+ {[%clk 0:00:11]}  Kg4 {[%clk 0:00:12]} 41. Qxe4 {[%clk 0:00:11]}  h5 {[%clk 0:00:12]} 42. Bxg5+ {[%clk 0:00:10]}  Kh3 {[%clk 0:00:10]} 43. Qe2 {[%clk 0:00:08]}  h4 {[%clk 0:00:08]} 44. Qf1+ {[%clk 0:00:08]}  Kg4 {[%clk 0:00:08]} 45. Bxh4 {[%clk 0:00:09]}  Kh5 {[%clk 0:00:08]} 46. c5 {[%clk 0:00:09]}  Kg4 {[%clk 0:00:08]} 47. c6 {[%clk 0:00:10]}  Kh5 {[%clk 0:00:09]} 48. b4 {[%clk 0:00:10]}  Kg4 {[%clk 0:00:10]} 49. b5 {[%clk 0:00:11]}  Kh5 {[%clk 0:00:11]} 50. b6 {[%clk 0:00:12]}  Kg4 {[%clk 0:00:12]} 51. c7 {[%clk 0:00:12]}  Kh5 {[%clk 0:00:13]} 52. b7 {[%clk 0:00:13]}  Kg4 {[%clk 0:00:14]} 53. a4 {[%clk 0:00:14]}  Kh5 {[%clk 0:00:15]} 54. a5 {[%clk 0:00:15]}  Kg6 {[%clk 0:00:16]} 55. a6 {[%clk 0:00:16]}  Kh7 {[%clk 0:00:17]} 56. a7 {[%clk 0:00:17]}  Kg6 {[%clk 0:00:17]} 57. h3 {[%clk 0:00:17]}  Kg7 {[%clk 0:00:18]} 58. g4 {[%clk 0:00:18]}  Kg6 {[%clk 0:00:19]} 59. Bd8 {[%clk 0:00:17]}  Kg7 {[%clk 0:00:20]} 60. h4 {[%clk 0:00:18]}  Kg8 {[%clk 0:00:20]} 61. Qf4 {[%clk 0:00:18]}  Kg7 {[%clk 0:00:21]} 62. h5 {[%clk 0:00:19]}  Kg8 {[%clk 0:00:22]} 63. g5 {[%clk 0:00:20]}  Kh7 {[%clk 0:00:23]} 64. g6+ {[%clk 0:00:20]}  Kg7 {[%clk 0:00:23]} 65. Qg5 {[%clk 0:00:20]}  Kg8 {[%clk 0:00:23]} 66. h6 {[%clk 0:00:21]}  Kf8 {[%clk 0:00:24]} 67. Kf2 {[%clk 0:00:21]}  Ke8 {[%clk 0:00:25]} 68. Ke3 {[%clk 0:00:22]}  Kd7 {[%clk 0:00:26]} 69. c8=Q+ {[%clk 0:00:19]}  Ke8 {[%clk 0:00:26]} 70. Qxe6+ {[%clk 0:00:18]}  Kf8 {[%clk 0:00:26]} 71. Qh3 {[%clk 0:00:17]}  Ke8 {[%clk 0:00:26]} 72. Bb6 {[%clk 0:00:18]}  Kf8 {[%clk 0:00:26]} 73. b8=N {[%clk 0:00:18]}  Ke8 {[%clk 0:00:26]} 74. Na6 {[%clk 0:00:18]}  Kf8 {[%clk 0:00:26]} 75. Nb4 {[%clk 0:00:18]}  Ke8 {[%clk 0:00:27]} 76. Nd5 {[%clk 0:00:19]}  Kf8 {[%clk 0:00:28]} 77. Nc3 {[%clk 0:00:19]}  Ke8 {[%clk 0:00:28]} 78. Nb1 {[%clk 0:00:20]}  Kf8 {[%clk 0:00:29]} 79. h7 {[%clk 0:00:20]}  Ke8 {[%clk 0:00:30]} 80. h8=N {[%clk 0:00:18]}  Kf8 {[%clk 0:00:31]} 81. Nf7 {[%clk 0:00:19]}  Kg7 {[%clk 0:00:31]} 82. Nh6 {[%clk 0:00:19]}  Kh8 {[%clk 0:00:31]} 83. Nf5+ {[%clk 0:00:20]}  Kg8 {[%clk 0:00:32]} 84. Nh4 {[%clk 0:00:21]}  Kg7 {[%clk 0:00:32]} 85. Nf3 {[%clk 0:00:22]}  Kg8 {[%clk 0:00:32]} 86. Ng1 {[%clk 0:00:23]}  Kg7 {[%clk 0:00:33]} 87. Bc5 {[%clk 0:00:23]}  Kg8 {[%clk 0:00:32]} 88. Ba3 {[%clk 0:00:23]}  Kg7 {[%clk 0:00:33]} 89. Bc1 {[%clk 0:00:24]}  Kg8 {[%clk 0:00:33]} 90. a8=B {[%clk 0:00:24]}  Kg7 {[%clk 0:00:34]} 91. Bg2 {[%clk 0:00:24]}  Kg8 {[%clk 0:00:35]} 92. Bf1 {[%clk 0:00:25]}  Kf8 {[%clk 0:00:35]} 93. Qf3+ {[%clk 0:00:25]}  Ke8 {[%clk 0:00:36]} 94. Qd1 {[%clk 0:00:26]}  Kf8 {[%clk 0:00:36]} 95. Ke2 {[%clk 0:00:27]}  Ke8 {[%clk 0:00:37]} 96. Ke1 {[%clk 0:00:27]}  Kf8 {[%clk 0:00:37]} 97. g7+ {[%clk 0:00:28]}  Ke8 {[%clk 0:00:38]} 98. g8=R+ {[%clk 0:00:28]}  Kf7 {[%clk 0:00:38]} 99. Rh8 {[%clk 0:00:28]}  Ke6 {[%clk 0:00:38]} 100. Rh1 {[%clk 0:00:29]}  Kf7 {[%clk 0:00:38]} 101. Qf5+ {[%clk 0:00:29]}  Ke7 {[%clk 0:00:38]} 102. Qe2 {[%clk 0:00:26]}  Kd8 {[%clk 0:00:38]} 103. e6 {[%clk 0:00:26]}  Kc7 {[%clk 0:00:39]} 104. e7 {[%clk 0:00:27]}  Kb6 {[%clk 0:00:39]} 105. Qd1 {[%clk 0:00:27]}  Kc7 {[%clk 0:00:39]} 106. e8=R {[%clk 0:00:26]}  Kb6 {[%clk 0:00:39]} 107. Ra8 {[%clk 0:00:27]}  Kb7 {[%clk 0:00:39]} 108. Ra1 {[%clk 0:00:27]}  Kb6 {[%clk 0:00:39]} 109. Qd6+ {[%clk 0:00:22]}  Kb7 {[%clk 0:00:39]} 110. Rh7# {[%clk 0:00:23]} 1-0


[Site "https://www.chess.com"]

[Event "Late Titled Tuesday Blitz February 8 2022"]
[White "Kostiukov, Alexandr"]
[Black "Laith, Kasib"]
[WhiteFideId "14108100"]
[BlackFideId "4801059"]
[WhiteElo "2202"]
[BlackElo "1982"]
[Result "0-1"]
[Round "08"]
[TimeControl "180+1"]
[Date "2022.02.09"]
[WhiteClock "0:00:05"]
[BlackClock "0:00:34"]

1. g3 {[%clk 0:03:00]}  g6 {[%clk 0:02:54]} 2. Bg2 {[%clk 0:03:00]}  Bg7 {[%clk 0:02:55]} 3. c4 {[%clk 0:03:01]}  Nf6 {[%clk 0:02:54]} 4. Nf3 {[%clk 0:03:01]}  O-O {[%clk 0:02:54]} 5. O-O {[%clk 0:03:02]}  d6 {[%clk 0:02:54]} 6. d4 {[%clk 0:03:02]}  Nc6 {[%clk 0:02:54]} 7. Nc3 {[%clk 0:03:03]}  e5 {[%clk 0:02:55]} 8. d5 {[%clk 0:03:03]}  Nb8 {[%clk 0:02:54]} 9. e4 {[%clk 0:03:03]}  a5 {[%clk 0:02:55]} 10. Ne1 {[%clk 0:03:02]}  Na6 {[%clk 0:02:55]} 11. Nd3 {[%clk 0:03:02]}  Nd7 {[%clk 0:02:53]} 12. Be3 {[%clk 0:03:02]}  Nac5 {[%clk 0:02:52]} 13. Nxc5 {[%clk 0:03:01]}  Nxc5 {[%clk 0:02:52]} 14. Bxc5 {[%clk 0:03:02]}  dxc5 {[%clk 0:02:52]} 15. Qd2 {[%clk 0:03:02]}  b6 {[%clk 0:02:38]} 16. Rad1 {[%clk 0:02:51]}  Ba6 {[%clk 0:02:35]} 17. b3 {[%clk 0:02:39]}  Qd7 {[%clk 0:02:31]} 18. a4 {[%clk 0:02:08]}  Rad8 {[%clk 0:02:27]} 19. Rfe1 {[%clk 0:01:52]}  Kh8 {[%clk 0:02:03]} 20. Ne2 {[%clk 0:01:41]}  Bc8 {[%clk 0:02:01]} 21. f4 {[%clk 0:01:32]}  Rfe8 {[%clk 0:01:52]} 22. Nc3 {[%clk 0:01:15]}  exf4 {[%clk 0:01:45]} 23. gxf4 {[%clk 0:01:16]}  Qg4 {[%clk 0:01:40]} 24. e5 {[%clk 0:01:09]}  Bh6 {[%clk 0:01:31]} 25. Rf1 {[%clk 0:00:59]}  Rxe5 {[%clk 0:01:27]} 26. fxe5 {[%clk 0:00:48]}  Bxd2 {[%clk 0:01:25]} 27. Rxd2 {[%clk 0:00:49]}  Qg5 {[%clk 0:01:17]} 28. Re2 {[%clk 0:00:38]}  Bf5 {[%clk 0:01:16]} 29. Ne4 {[%clk 0:00:32]}  Qh5 {[%clk 0:01:06]} 30. Ng3 {[%clk 0:00:30]}  Qg4 {[%clk 0:01:01]} 31. Ref2 {[%clk 0:00:19]}  Bd3 {[%clk 0:00:49]} 32. Re1 {[%clk 0:00:17]}  Re8 {[%clk 0:00:44]} 33. Rxf7 {[%clk 0:00:14]}  Rxe5 {[%clk 0:00:43]} 34. Rxe5 {[%clk 0:00:10]}  Qd4+ {[%clk 0:00:43]} 35. Rf2 {[%clk 0:00:08]}  Qxe5 {[%clk 0:00:43]} 36. Bf3 {[%clk 0:00:06]}  Kg7 {[%clk 0:00:40]} 37. Kg2 {[%clk 0:00:06]}  h5 {[%clk 0:00:39]} 38. h4 {[%clk 0:00:05]}  Qd4 {[%clk 0:00:39]} 39. Kh3 {[%clk 0:00:05]}  Qxf2 {[%clk 0:00:34]} 0-1


[Site "https://www.chess.com"]

[Event "Late Titled Tuesday Blitz February 8 2022"]
[White "Kraus, Tomas"]
[Black "Mekhitarian, Krikor Sevag"]
[WhiteFideId "331708"]
[BlackFideId "2107660"]
[WhiteElo "2389"]
[BlackElo "2598"]
[Result "0-1"]
[Round "08"]
[TimeControl "180+1"]
[Date "2022.02.08"]
[WhiteClock "0:00:02"]
[BlackClock "0:00:02"]

1. d4 {[%clk 0:02:50]}  Nf6 {[%clk 0:02:59]} 2. Nf3 {[%clk 0:02:48]}  g6 {[%clk 0:02:59]} 3. g3 {[%clk 0:02:44]}  Bg7 {[%clk 0:02:59]} 4. Bg2 {[%clk 0:02:45]}  O-O {[%clk 0:02:58]} 5. b3 {[%clk 0:02:46]}  c5 {[%clk 0:02:54]} 6. c4 {[%clk 0:02:43]}  cxd4 {[%clk 0:02:52]} 7. Nxd4 {[%clk 0:02:44]}  d5 {[%clk 0:02:52]} 8. cxd5 {[%clk 0:02:40]}  Nxd5 {[%clk 0:02:53]} 9. Bb2 {[%clk 0:02:41]}  a6 {[%clk 0:01:59]} 10. O-O {[%clk 0:02:40]}  e5 {[%clk 0:01:58]} 11. Nb5 {[%clk 0:02:17]}  Be6 {[%clk 0:01:52]} 12. N5c3 {[%clk 0:02:11]}  Nb4 {[%clk 0:01:49]} 13. Qc1 {[%clk 0:01:33]}  Qe7 {[%clk 0:01:37]} 14. a3 {[%clk 0:01:29]}  N4c6 {[%clk 0:01:37]} 15. Nd5 {[%clk 0:01:27]}  Bxd5 {[%clk 0:01:34]} 16. Bxd5 {[%clk 0:01:28]}  Nd4 {[%clk 0:01:35]} 17. Nc3 {[%clk 0:01:25]}  Rc8 {[%clk 0:01:29]} 18. Qd1 {[%clk 0:01:21]}  Nbc6 {[%clk 0:01:18]} 19. e3 {[%clk 0:01:20]}  Ne6 {[%clk 0:01:17]} 20. b4 {[%clk 0:01:13]}  Rd8 {[%clk 0:01:16]} 21. Qb3 {[%clk 0:01:13]}  Nc7 {[%clk 0:01:15]} 22. Bg2 {[%clk 0:01:02]}  Kh8 {[%clk 0:01:05]} 23. Ne4 {[%clk 0:00:54]}  Ne6 {[%clk 0:01:00]} 24. Nc3 {[%clk 0:00:47]}  Nc7 {[%clk 0:00:54]} 25. Rac1 {[%clk 0:00:41]}  f5 {[%clk 0:00:36]} 26. Nd5 {[%clk 0:00:41]}  Nxd5 {[%clk 0:00:36]} 27. Bxd5 {[%clk 0:00:42]}  Rac8 {[%clk 0:00:34]} 28. Rc5 {[%clk 0:00:38]}  Na7 {[%clk 0:00:18]} 29. Rfc1 {[%clk 0:00:37]}  Rxc5 {[%clk 0:00:19]} 30. Rxc5 {[%clk 0:00:38]}  Nb5 {[%clk 0:00:19]} 31. a4 {[%clk 0:00:25]}  Nd6 {[%clk 0:00:18]} 32. Qc2 {[%clk 0:00:20]}  Rd7 {[%clk 0:00:17]} 33. b5 {[%clk 0:00:15]}  axb5 {[%clk 0:00:17]} 34. axb5 {[%clk 0:00:16]}  b6 {[%clk 0:00:13]} 35. Rc6 {[%clk 0:00:11]}  h5 {[%clk 0:00:13]} 36. Ba3 {[%clk 0:00:10]}  Qf8 {[%clk 0:00:06]} 37. Rxb6 {[%clk 0:00:07]}  Kh7 {[%clk 0:00:06]} 38. Rc6 {[%clk 0:00:07]}  Qd8 {[%clk 0:00:05]} 39. Qc5 {[%clk 0:00:06]}  Nxb5 {[%clk 0:00:05]} 40. Be6 {[%clk 0:00:06]}  Rd1+ {[%clk 0:00:05]} 41. Kg2 {[%clk 0:00:07]}  Nxa3 {[%clk 0:00:04]} 42. Rc8 {[%clk 0:00:08]}  Qf6 {[%clk 0:00:03]} 43. Bg8+ {[%clk 0:00:07]}  Kh6 {[%clk 0:00:03]} 44. Qxa3 {[%clk 0:00:08]}  f4 {[%clk 0:00:04]} 45. exf4 {[%clk 0:00:07]}  exf4 {[%clk 0:00:04]} 46. Qf3 {[%clk 0:00:06]}  Rd4 {[%clk 0:00:03]} 47. Rc6 {[%clk 0:00:05]}  Qg5 {[%clk 0:00:03]} 48. Bf7 {[%clk 0:00:04]}  Bf6 {[%clk 0:00:02]} 49. h4 {[%clk 0:00:03]}  Qf5 {[%clk 0:00:03]} 50. Rc3 {[%clk 0:00:02]}  Qe5 {[%clk 0:00:02]} 51. Rd3 {[%clk 0:00:02]}  Rb4 {[%clk 0:00:02]} 52. Rd5 {[%clk 0:00:02]}  Qe7 {[%clk 0:00:03]} 53. Qd3 {[%clk 0:00:02]}  Qe4+ {[%clk 0:00:01]} 54. Qxe4 {[%clk 0:00:02]}  Rxe4 {[%clk 0:00:02]} 55. Rd6 {[%clk 0:00:02]}  Kg7 {[%clk 0:00:02]} 56. Be8 {[%clk 0:00:03]}  fxg3 {[%clk 0:00:03]} 57. Bd7 {[%clk 0:00:02]}  gxf2 {[%clk 0:00:03]} 58. Kxf2 {[%clk 0:00:03]}  Rxh4 {[%clk 0:00:03]} 59. Kf3 {[%clk 0:00:03]}  Rb4 {[%clk 0:00:02]} 60. Rc6 {[%clk 0:00:03]}  g5 {[%clk 0:00:02]} 61. Bf5 {[%clk 0:00:02]}  g4+ {[%clk 0:00:02]} 62. Kg3 {[%clk 0:00:03]}  Rd4 {[%clk 0:00:01]} 63. Rc7+ {[%clk 0:00:03]}  Kh6 {[%clk 0:00:02]} 64. Rc6 {[%clk 0:00:02]}  Kg5 {[%clk 0:00:02]} 65. Bc8 {[%clk 0:00:03]}  Rd3+ {[%clk 0:00:02]} 66. Kg2 {[%clk 0:00:03]}  h4 {[%clk 0:00:03]} 67. Rc5+ {[%clk 0:00:03]}  Kh6 {[%clk 0:00:03]} 68. Rc6 {[%clk 0:00:03]}  Rg3+ {[%clk 0:00:04]} 69. Kf2 {[%clk 0:00:02]}  Kg5 {[%clk 0:00:04]} 70. Rc5+ {[%clk 0:00:02]}  Kg6 {[%clk 0:00:05]} 71. Rc6 {[%clk 0:00:03]}  Kg7 {[%clk 0:00:03]} 72. Rc7+ {[%clk 0:00:03]}  Kh6 {[%clk 0:00:03]} 73. Rc6 {[%clk 0:00:04]}  Rf3+ {[%clk 0:00:03]} 74. Kg2 {[%clk 0:00:04]}  Kg5 {[%clk 0:00:04]} 75. Rc5+ {[%clk 0:00:02]}  Kg6 {[%clk 0:00:04]} 76. Bxg4 {[%clk 0:00:02]}  Rg3+ {[%clk 0:00:05]} 77. Kh2 {[%clk 0:00:02]}  Rxg4 {[%clk 0:00:06]} 78. Kh3 {[%clk 0:00:03]}  Rf4 {[%clk 0:00:06]} 79. Rc6 {[%clk 0:00:03]}  Kh5 {[%clk 0:00:05]} 80. Rc5+ {[%clk 0:00:04]}  Bg5 {[%clk 0:00:05]} 81. Rb5 {[%clk 0:00:04]}  Rf3+ {[%clk 0:00:05]} 82. Kg2 {[%clk 0:00:05]}  Rg3+ {[%clk 0:00:05]} 83. Kh2 {[%clk 0:00:05]}  Kg4 {[%clk 0:00:06]} 84. Rb4+ {[%clk 0:00:06]}  Bf4 {[%clk 0:00:07]} 85. Kh1 {[%clk 0:00:06]}  Rc3 {[%clk 0:00:06]} 86. Rb1 {[%clk 0:00:06]}  Kg3 {[%clk 0:00:05]} 87. Rg1+ {[%clk 0:00:06]}  Kh3 {[%clk 0:00:06]} 88. Rf1 {[%clk 0:00:07]}  Kg4 {[%clk 0:00:05]} 89. Rg1+ {[%clk 0:00:07]}  Rg3 {[%clk 0:00:04]} 90. Rb1 {[%clk 0:00:06]}  Rh3+ {[%clk 0:00:04]} 91. Kg2 {[%clk 0:00:06]}  Rh2+ {[%clk 0:00:04]} 92. Kg1 {[%clk 0:00:07]}  Rc2 {[%clk 0:00:05]} 93. Rd1 {[%clk 0:00:06]}  h3 {[%clk 0:00:04]} 94. Kh1 {[%clk 0:00:07]}  Bg3 {[%clk 0:00:04]} 95. Rb1 {[%clk 0:00:05]}  Rh2+ {[%clk 0:00:02]} 96. Kg1 {[%clk 0:00:05]}  Ra2 {[%clk 0:00:03]} 97. Kh1 {[%clk 0:00:05]}  Bf4 {[%clk 0:00:03]} 98. Rg1+ {[%clk 0:00:05]}  Kf3 {[%clk 0:00:03]} 99. Rf1+ {[%clk 0:00:05]}  Kg3 {[%clk 0:00:03]} 100. Rg1+ {[%clk 0:00:05]}  Rg2 {[%clk 0:00:04]} 101. Rd1 {[%clk 0:00:05]}  Be3 {[%clk 0:00:04]} 102. Rd2 {[%clk 0:00:02]}  Rg1# {[%clk 0:00:02]} 0-1


[Site "https://www.chess.com"]

[Event "Late Titled Tuesday Blitz February 8 2022"]
[White "Levine, David"]
[Black "Zhou, Qiyu"]
[WhiteFideId "2011611"]
[BlackFideId "505161"]
[WhiteElo "2129"]
[BlackElo "1925"]
[Result "1-0"]
[Round "08"]
[TimeControl "180+1"]
[Date "2022.02.09"]
[WhiteClock "0:00:11"]
[BlackClock "0:00:03"]

1. d4 {[%clk 0:03:00]}  Nf6 {[%clk 0:02:59]} 2. c4 {[%clk 0:03:00]}  e6 {[%clk 0:02:59]} 3. g3 {[%clk 0:03:00]}  d5 {[%clk 0:02:59]} 4. Bg2 {[%clk 0:03:00]}  Bb4+ {[%clk 0:02:58]} 5. Bd2 {[%clk 0:03:00]}  Be7 {[%clk 0:02:58]} 6. Nf3 {[%clk 0:02:59]}  O-O {[%clk 0:02:58]} 7. O-O {[%clk 0:02:58]}  c6 {[%clk 0:02:59]} 8. Qc2 {[%clk 0:02:58]}  b6 {[%clk 0:02:58]} 9. Rd1 {[%clk 0:02:52]}  Ba6 {[%clk 0:02:58]} 10. b3 {[%clk 0:02:51]}  Nbd7 {[%clk 0:02:56]} 11. Bf4 {[%clk 0:02:48]}  Ne4 {[%clk 0:02:53]} 12. Nbd2 {[%clk 0:02:42]}  Ndf6 {[%clk 0:02:51]} 13. Ne5 {[%clk 0:02:39]}  Nxd2 {[%clk 0:02:46]} 14. Rxd2 {[%clk 0:02:34]}  Rc8 {[%clk 0:02:45]} 15. Rc1 {[%clk 0:02:12]}  Nd7 {[%clk 0:02:39]} 16. Qb1 {[%clk 0:02:00]}  Bb4 {[%clk 0:02:25]} 17. Rdd1 {[%clk 0:01:57]}  Nxe5 {[%clk 0:02:19]} 18. Bxe5 {[%clk 0:01:54]}  Qe7 {[%clk 0:02:15]} 19. cxd5 {[%clk 0:01:48]}  cxd5 {[%clk 0:02:13]} 20. Rxc8 {[%clk 0:01:46]}  Rxc8 {[%clk 0:02:14]} 21. Bf3 {[%clk 0:01:42]}  Ba3 {[%clk 0:01:58]} 22. h4 {[%clk 0:01:39]}  h6 {[%clk 0:01:49]} 23. Kg2 {[%clk 0:01:35]}  Qb4 {[%clk 0:01:42]} 24. g4 {[%clk 0:01:25]}  Qc3 {[%clk 0:01:26]} 25. g5 {[%clk 0:01:15]}  hxg5 {[%clk 0:01:25]} 26. hxg5 {[%clk 0:01:15]}  Qc2 {[%clk 0:01:25]} 27. Qxc2 {[%clk 0:01:00]}  Rxc2 {[%clk 0:01:26]} 28. e3 {[%clk 0:00:58]}  Rxa2 {[%clk 0:01:18]} 29. Bb8 {[%clk 0:00:58]}  Be7 {[%clk 0:01:03]} 30. g6 {[%clk 0:00:54]}  fxg6 {[%clk 0:00:54]} 31. Bxa7 {[%clk 0:00:52]}  Bd8 {[%clk 0:00:46]} 32. Rc1 {[%clk 0:00:40]}  Bb7 {[%clk 0:00:43]} 33. Bb8 {[%clk 0:00:36]}  Ra8 {[%clk 0:00:38]} 34. Be5 {[%clk 0:00:31]}  Kf7 {[%clk 0:00:30]} 35. Kg3 {[%clk 0:00:31]}  Rc8 {[%clk 0:00:23]} 36. Ra1 {[%clk 0:00:26]}  Ra8 {[%clk 0:00:23]} 37. Rc1 {[%clk 0:00:25]}  Ra3 {[%clk 0:00:22]} 38. Bc7 {[%clk 0:00:23]}  Be7 {[%clk 0:00:20]} 39. Bxb6 {[%clk 0:00:21]}  Rxb3 {[%clk 0:00:18]} 40. Bc5 {[%clk 0:00:21]}  Ba6 {[%clk 0:00:10]} 41. Ra1 {[%clk 0:00:21]}  Bxc5 {[%clk 0:00:06]} 42. Rxa6 {[%clk 0:00:21]}  Be7 {[%clk 0:00:05]} 43. Bg4 {[%clk 0:00:20]}  Bd8 {[%clk 0:00:02]} 44. Bxe6+ {[%clk 0:00:19]}  Kf8 {[%clk 0:00:02]} 45. Bxd5 {[%clk 0:00:19]}  Bc7+ {[%clk 0:00:03]} 46. Kg2 {[%clk 0:00:19]}  Rb2 {[%clk 0:00:03]} 47. Rxg6 {[%clk 0:00:18]}  Rb5 {[%clk 0:00:02]} 48. Be4 {[%clk 0:00:15]}  Rh5 {[%clk 0:00:02]} 49. Rc6 {[%clk 0:00:13]}  Rh2+ {[%clk 0:00:03]} 50. Kf3 {[%clk 0:00:13]}  Bb8 {[%clk 0:00:02]} 51. Rc8+ {[%clk 0:00:11]}  Ke7 {[%clk 0:00:03]} 52. Rxb8 {[%clk 0:00:11]} 1-0


[Site "https://www.chess.com"]